[Event "Titled Tuesday Blitz August 23 Late 2022"]
[White "Boruchovsky, Avital"]
[Black "Bacrot, Etienne"]
[WhiteFideId "2800055"]
[BlackFideId "605506"]
[WhiteElo "2466"]
[BlackElo "2673"]
[Result "0-1"]
[Round "08"]
[TimeControl "180+1"]
[Date "2022.08.23"]
[WhiteClock "0:00:01"]
[BlackClock "0:00:08"]

1. c4 {[%clk 0:03:00]}  c6 {[%clk 0:02:59]} 2. Nf3 {[%clk 0:03:00]}  d5 {[%clk 0:02:57]} 3. g3 {[%clk 0:03:00]}  Nf6 {[%clk 0:02:56]} 4. Bg2 {[%clk 0:03:01]}  g6 {[%clk 0:02:55]} 5. Qb3 {[%clk 0:02:59]}  Bg7 {[%clk 0:02:55]} 6. O-O {[%clk 0:02:59]}  O-O {[%clk 0:02:50]} 7. d4 {[%clk 0:02:48]}  Qb6 {[%clk 0:02:40]} 8. Qxb6 {[%clk 0:02:35]}  axb6 {[%clk 0:02:40]} 9. cxd5 {[%clk 0:02:35]}  Nxd5 {[%clk 0:02:37]} 10. Nc3 {[%clk 0:02:35]}  Nxc3 {[%clk 0:02:34]} 11. bxc3 {[%clk 0:02:36]}  b5 {[%clk 0:02:34]} 12. e4 {[%clk 0:02:22]}  Be6 {[%clk 0:02:31]} 13. Bg5 {[%clk 0:02:09]}  f6 {[%clk 0:02:22]} 14. Be3 {[%clk 0:02:03]}  Bxa2 {[%clk 0:02:13]} 15. Bh3 {[%clk 0:01:56]}  f5 {[%clk 0:02:07]} 16. exf5 {[%clk 0:01:44]}  gxf5 {[%clk 0:02:06]} 17. Ne5 {[%clk 0:01:39]}  Ra4 {[%clk 0:01:47]} 18. Rfe1 {[%clk 0:01:21]}  Bxe5 {[%clk 0:01:14]} 19. dxe5 {[%clk 0:01:21]}  Be6 {[%clk 0:01:14]} 20. Bg5 {[%clk 0:01:12]}  Kf7 {[%clk 0:01:09]} 21. Rad1 {[%clk 0:01:08]}  Nd7 {[%clk 0:00:58]} 22. Bg2 {[%clk 0:01:08]}  Re8 {[%clk 0:00:37]} 23. Bf3 {[%clk 0:01:06]}  Kg6 {[%clk 0:00:34]} 24. h4 {[%clk 0:01:05]}  h6 {[%clk 0:00:32]} 25. Bf4 {[%clk 0:00:57]}  Rea8 {[%clk 0:00:31]} 26. Kg2 {[%clk 0:00:52]}  Nb6 {[%clk 0:00:27]} 27. Be3 {[%clk 0:00:43]}  Nc4 {[%clk 0:00:26]} 28. Bc5 {[%clk 0:00:42]}  Kf7 {[%clk 0:00:18]} 29. Rd4 {[%clk 0:00:34]}  Ra2 {[%clk 0:00:17]} 30. Rf4 {[%clk 0:00:27]}  Nd2 {[%clk 0:00:14]} 31. Bh5+ {[%clk 0:00:25]}  Kf8 {[%clk 0:00:14]} 32. g4 {[%clk 0:00:26]}  Bd5+ {[%clk 0:00:11]} 33. Kg3 {[%clk 0:00:21]}  Ne4+ {[%clk 0:00:11]} 34. Rexe4 {[%clk 0:00:21]}  Bxe4 {[%clk 0:00:10]} 35. gxf5 {[%clk 0:00:21]}  b6 {[%clk 0:00:06]} 36. Bxb6 {[%clk 0:00:16]}  Bd5 {[%clk 0:00:06]} 37. Bc5 {[%clk 0:00:17]}  Rc2 {[%clk 0:00:05]} 38. f6 {[%clk 0:00:17]}  Rxc3+ {[%clk 0:00:05]} 39. Be3 {[%clk 0:00:15]}  exf6 {[%clk 0:00:06]} 40. Rxf6+ {[%clk 0:00:15]}  Ke7 {[%clk 0:00:06]} 41. Rxh6 {[%clk 0:00:15]}  Rf8 {[%clk 0:00:06]} 42. Rh7+ {[%clk 0:00:14]}  Ke6 {[%clk 0:00:06]} 43. Bg4+ {[%clk 0:00:07]}  Kxe5 {[%clk 0:00:07]} 44. f4+ {[%clk 0:00:07]}  Kd6 {[%clk 0:00:07]} 45. Kf2 {[%clk 0:00:07]}  Rc2+ {[%clk 0:00:08]} 46. Kf1 {[%clk 0:00:05]}  Bc4+ {[%clk 0:00:07]} 47. Kg1 {[%clk 0:00:03]}  Rg8 {[%clk 0:00:07]} 48. Rh6+ {[%clk 0:00:03]}  Kc7 {[%clk 0:00:07]} 49. Rh7+ {[%clk 0:00:03]}  Kb8 {[%clk 0:00:08]} 50. Ba7+ {[%clk 0:00:01]}  Ka8 {[%clk 0:00:08]} 0-1


[Site "https://www.chess.com"]

[Event "Titled Tuesday Blitz August 23 Late 2022"]
[White "Dubov, Daniil"]
[Black "Naroditsky, Daniel"]
[WhiteFideId "24126055"]
[BlackFideId "2026961"]
[WhiteElo "2791"]
[BlackElo "2628"]
[Result "1-0"]
[Round "08"]
[TimeControl "180+1"]
[Date "2022.08.23"]
[WhiteClock "0:00:05"]
[BlackClock "0:00:03"]

1. d4 {[%clk 0:03:00]}  Nf6 {[%clk 0:03:00]} 2. Nf3 {[%clk 0:03:00]}  g6 {[%clk 0:03:00]} 3. c4 {[%clk 0:03:00]}  Bg7 {[%clk 0:03:00]} 4. Nc3 {[%clk 0:03:01]}  O-O {[%clk 0:03:01]} 5. Bg5 {[%clk 0:03:01]}  d6 {[%clk 0:02:59]} 6. e3 {[%clk 0:03:01]}  Bf5 {[%clk 0:02:58]} 7. Bd3 {[%clk 0:03:00]}  Bxd3 {[%clk 0:02:58]} 8. Qxd3 {[%clk 0:03:01]}  c6 {[%clk 0:02:53]} 9. O-O {[%clk 0:03:01]}  Nbd7 {[%clk 0:02:54]} 10. h3 {[%clk 0:03:00]}  Qc7 {[%clk 0:02:50]} 11. Rfd1 {[%clk 0:02:58]}  Rac8 {[%clk 0:02:38]} 12. Bf4 {[%clk 0:02:53]}  e5 {[%clk 0:02:23]} 13. Bh2 {[%clk 0:02:52]}  Rfe8 {[%clk 0:02:23]} 14. Qc2 {[%clk 0:02:49]}  exd4 {[%clk 0:02:00]} 15. exd4 {[%clk 0:02:47]}  Rcd8 {[%clk 0:01:46]} 16. Rac1 {[%clk 0:02:24]}  Bh6 {[%clk 0:01:34]} 17. Rb1 {[%clk 0:02:23]}  Nh5 {[%clk 0:01:20]} 18. Re1 {[%clk 0:02:16]}  Bf4 {[%clk 0:01:17]} 19. Bxf4 {[%clk 0:02:08]}  Nxf4 {[%clk 0:01:18]} 20. Qd2 {[%clk 0:02:08]}  d5 {[%clk 0:01:18]} 21. g3 {[%clk 0:02:01]}  Ne6 {[%clk 0:01:12]} 22. cxd5 {[%clk 0:01:55]}  cxd5 {[%clk 0:01:13]} 23. Nxd5 {[%clk 0:01:54]}  Qc6 {[%clk 0:01:13]} 24. Ne7+ {[%clk 0:01:22]}  Rxe7 {[%clk 0:01:11]} 25. d5 {[%clk 0:01:22]}  Qb6 {[%clk 0:00:44]} 26. dxe6 {[%clk 0:01:08]}  Nc5 {[%clk 0:00:44]} 27. Qh6 {[%clk 0:00:46]}  fxe6 {[%clk 0:00:29]} 28. Rbd1 {[%clk 0:00:38]}  Rf8 {[%clk 0:00:30]} 29. Re3 {[%clk 0:00:28]}  Qxb2 {[%clk 0:00:24]} 30. Qg5 {[%clk 0:00:28]}  Rc7 {[%clk 0:00:19]} 31. Rd8 {[%clk 0:00:26]}  Qc1+ {[%clk 0:00:11]} 32. Kg2 {[%clk 0:00:25]}  Rf7 {[%clk 0:00:12]} 33. Rxf8+ {[%clk 0:00:20]}  Rxf8 {[%clk 0:00:13]} 34. Qe5 {[%clk 0:00:20]}  b6 {[%clk 0:00:10]} 35. h4 {[%clk 0:00:17]}  Qc2 {[%clk 0:00:09]} 36. h5 {[%clk 0:00:15]}  Qf5 {[%clk 0:00:07]} 37. h6 {[%clk 0:00:16]}  Qxe5 {[%clk 0:00:07]} 38. Nxe5 {[%clk 0:00:17]}  Rd8 {[%clk 0:00:06]} 39. Rf3 {[%clk 0:00:15]}  Rd5 {[%clk 0:00:03]} 40. Nc6 {[%clk 0:00:10]}  Rd7 {[%clk 0:00:03]} 41. Ra3 {[%clk 0:00:06]}  a5 {[%clk 0:00:03]} 42. Rf3 {[%clk 0:00:04]}  Rc7 {[%clk 0:00:03]} 43. Ne5 {[%clk 0:00:04]}  Re7 {[%clk 0:00:03]} 44. g4 {[%clk 0:00:04]}  Ne4 {[%clk 0:00:02]} 45. Re3 {[%clk 0:00:03]}  Nc5 {[%clk 0:00:03]} 46. g5 {[%clk 0:00:02]}  Rc7 {[%clk 0:00:02]} 47. Rf3 {[%clk 0:00:02]}  Ne4 {[%clk 0:00:02]} 48. Rd3 {[%clk 0:00:01]}  Rc8 {[%clk 0:00:01]} 49. Rd7 {[%clk 0:00:02]}  Nxg5 {[%clk 0:00:02]} 50. Rg7+ {[%clk 0:00:02]}  Kh8 {[%clk 0:00:03]} 51. Nd7 {[%clk 0:00:02]}  Rc7 {[%clk 0:00:02]} 52. Re7 {[%clk 0:00:01]}  Kg8 {[%clk 0:00:02]} 53. f4 {[%clk 0:00:01]}  Rc2+ {[%clk 0:00:01]} 54. Kg3 {[%clk 0:00:02]}  Ne4+ {[%clk 0:00:02]} 55. Kf3 {[%clk 0:00:02]}  Nc5 {[%clk 0:00:02]} 56. Nf6+ {[%clk 0:00:02]}  Kf8 {[%clk 0:00:03]} 57. Rxh7 {[%clk 0:00:02]}  Rh2 {[%clk 0:00:03]} 58. Kg3 {[%clk 0:00:02]}  Rh1 {[%clk 0:00:03]} 59. Ng4 {[%clk 0:00:02]}  Ne4+ {[%clk 0:00:03]} 60. Kg2 {[%clk 0:00:03]}  Rh4 {[%clk 0:00:03]} 61. Ne5 {[%clk 0:00:03]}  Kg8 {[%clk 0:00:01]} 62. Rg7+ {[%clk 0:00:03]}  Kf8 {[%clk 0:00:02]} 63. Nxg6+ {[%clk 0:00:04]}  Ke8 {[%clk 0:00:03]} 64. Nxh4 {[%clk 0:00:05]} 1-0


[Site "https://www.chess.com"]

[Event "Titled Tuesday Blitz August 23 Late 2022"]
[White "Harvey, Marcus R"]
[Black "Yurovskykh, Oleksandr"]
[WhiteFideId "400092"]
[BlackFideId "14134020"]
[WhiteElo "2485"]
[BlackElo "2292"]
[Result "0-1"]
[Round "08"]
[TimeControl "180+1"]
[Date "2022.08.23"]
[WhiteClock "0:00:03"]
[BlackClock "0:00:07"]

1. Nf3 {[%clk 0:02:53]}  d5 {[%clk 0:02:58]} 2. b3 {[%clk 0:02:54]}  Bg4 {[%clk 0:02:58]} 3. Bb2 {[%clk 0:02:54]}  Bxf3 {[%clk 0:02:58]} 4. gxf3 {[%clk 0:02:54]}  e6 {[%clk 0:02:59]} 5. f4 {[%clk 0:02:54]}  Nf6 {[%clk 0:02:58]} 6. h4 {[%clk 0:02:54]}  h5 {[%clk 0:02:57]} 7. Bh3 {[%clk 0:02:53]}  g6 {[%clk 0:02:57]} 8. d3 {[%clk 0:02:52]}  Bg7 {[%clk 0:02:56]} 9. Nd2 {[%clk 0:02:52]}  c5 {[%clk 0:02:44]} 10. e4 {[%clk 0:02:50]}  Nc6 {[%clk 0:02:42]} 11. f5 {[%clk 0:02:46]}  exf5 {[%clk 0:02:42]} 12. exf5 {[%clk 0:02:45]}  Qe7+ {[%clk 0:02:42]} 13. Kf1 {[%clk 0:02:41]}  O-O {[%clk 0:02:39]} 14. Nf3 {[%clk 0:02:29]}  d4 {[%clk 0:02:16]} 15. Rg1 {[%clk 0:02:25]}  Ne5 {[%clk 0:02:11]} 16. Nxe5 {[%clk 0:02:21]}  Qxe5 {[%clk 0:02:12]} 17. Qf3 {[%clk 0:02:19]}  Rae8 {[%clk 0:02:04]} 18. Rd1 {[%clk 0:02:03]}  Kh7 {[%clk 0:01:56]} 19. Bc1 {[%clk 0:02:02]}  Nd5 {[%clk 0:01:54]} 20. Bd2 {[%clk 0:01:52]}  Nb4 {[%clk 0:01:15]} 21. Rg5 {[%clk 0:01:21]}  Qf6 {[%clk 0:00:49]} 22. fxg6+ {[%clk 0:01:20]}  fxg6 {[%clk 0:00:49]} 23. Qxf6 {[%clk 0:01:21]}  Rxf6 {[%clk 0:00:41]} 24. Rxc5 {[%clk 0:01:21]}  Nc6 {[%clk 0:00:40]} 25. Bg5 {[%clk 0:01:18]}  Rd6 {[%clk 0:00:24]} 26. Re1 {[%clk 0:01:14]}  Rxe1+ {[%clk 0:00:22]} 27. Kxe1 {[%clk 0:01:15]}  b6 {[%clk 0:00:22]} 28. Rc4 {[%clk 0:01:05]}  Ne5 {[%clk 0:00:20]} 29. Ra4 {[%clk 0:01:04]}  Nf3+ {[%clk 0:00:19]} 30. Kf1 {[%clk 0:01:01]}  Nxg5 {[%clk 0:00:19]} 31. hxg5 {[%clk 0:01:02]}  a5 {[%clk 0:00:19]} 32. Rc4 {[%clk 0:00:54]}  Be5 {[%clk 0:00:13]} 33. Rc7+ {[%clk 0:00:50]}  Kg8 {[%clk 0:00:12]} 34. Rc8+ {[%clk 0:00:46]}  Kf7 {[%clk 0:00:12]} 35. Rc7+ {[%clk 0:00:39]}  Kf8 {[%clk 0:00:12]} 36. Kg2 {[%clk 0:00:29]}  Bf4 {[%clk 0:00:12]} 37. Rc8+ {[%clk 0:00:29]}  Kf7 {[%clk 0:00:12]} 38. Kf3 {[%clk 0:00:28]}  Bxg5 {[%clk 0:00:12]} 39. Ke4 {[%clk 0:00:28]}  Bf6 {[%clk 0:00:10]} 40. f4 {[%clk 0:00:27]}  Bd8 {[%clk 0:00:04]} 41. Ke5 {[%clk 0:00:25]}  Ke7 {[%clk 0:00:05]} 42. f5 {[%clk 0:00:17]}  gxf5 {[%clk 0:00:05]} 43. Bxf5 {[%clk 0:00:18]}  h4 {[%clk 0:00:05]} 44. Ra8 {[%clk 0:00:18]}  Rh6 {[%clk 0:00:06]} 45. Ra7+ {[%clk 0:00:18]}  Kf8 {[%clk 0:00:06]} 46. Bh3 {[%clk 0:00:17]}  Bf6+ {[%clk 0:00:06]} 47. Kf5 {[%clk 0:00:17]}  Be7 {[%clk 0:00:06]} 48. Ra8+ {[%clk 0:00:16]}  Kf7 {[%clk 0:00:05]} 49. Ra7 {[%clk 0:00:16]}  Rc6 {[%clk 0:00:05]} 50. Ke5 {[%clk 0:00:12]}  Rxc2 {[%clk 0:00:02]} 51. Be6+ {[%clk 0:00:12]}  Kf8 {[%clk 0:00:03]} 52. Ra8+ {[%clk 0:00:11]}  Kg7 {[%clk 0:00:03]} 53. Rg8+ {[%clk 0:00:11]}  Kh7 {[%clk 0:00:04]} 54. Rg1 {[%clk 0:00:07]}  Re2+ {[%clk 0:00:04]} 55. Kd5 {[%clk 0:00:05]}  Rxa2 {[%clk 0:00:03]} 56. Bf5+ {[%clk 0:00:05]}  Kh6 {[%clk 0:00:03]} 57. Ke6 {[%clk 0:00:05]}  Bg5 {[%clk 0:00:03]} 58. Be4 {[%clk 0:00:04]}  Rf2 {[%clk 0:00:04]} 59. Bf5 {[%clk 0:00:03]}  Rf3 {[%clk 0:00:04]} 60. Ke5 {[%clk 0:00:02]}  h3 {[%clk 0:00:04]} 61. Rh1 {[%clk 0:00:02]}  Bf4+ {[%clk 0:00:04]} 62. Ke4 {[%clk 0:00:02]}  Rf2 {[%clk 0:00:05]} 63. Rxh3+ {[%clk 0:00:02]}  Kg5 {[%clk 0:00:05]} 64. Bd7 {[%clk 0:00:03]}  Re2+ {[%clk 0:00:06]} 65. Kd5 {[%clk 0:00:03]}  Rb2 {[%clk 0:00:06]} 66. Rh7 {[%clk 0:00:03]}  Rxb3 {[%clk 0:00:05]} 67. Rg7+ {[%clk 0:00:03]}  Kf6 {[%clk 0:00:05]} 68. Rg4 {[%clk 0:00:04]}  Be3 {[%clk 0:00:06]} 69. Ke4 {[%clk 0:00:04]}  Rb4 {[%clk 0:00:06]} 70. Bc6 {[%clk 0:00:04]}  a4 {[%clk 0:00:06]} 71. Be8 {[%clk 0:00:04]}  a3 {[%clk 0:00:06]} 72. Rg6+ {[%clk 0:00:04]}  Ke7 {[%clk 0:00:06]} 73. Bf7 {[%clk 0:00:03]}  Kxf7 {[%clk 0:00:06]} 74. Rg2 {[%clk 0:00:03]}  Rb2 {[%clk 0:00:07]} 0-1


[Site "https://www.chess.com"]

[Event "Titled Tuesday Blitz August 23 Late 2022"]
[White "Kosteniuk, Alexandra"]
[Black "Ezat, Mohamed"]
[WhiteFideId "4128125"]
[BlackFideId "10600906"]
[WhiteElo "2469"]
[BlackElo "2386"]
[Result "1-0"]
[Round "08"]
[TimeControl "180+1"]
[Date "2022.08.23"]
[WhiteClock "0:00:19"]
[BlackClock "0:00:01"]

1. e4 {[%clk 0:03:00]}  Nf6 {[%clk 0:02:58]} 2. e5 {[%clk 0:02:59]}  Nd5 {[%clk 0:02:58]} 3. d4 {[%clk 0:03:00]}  d6 {[%clk 0:02:59]} 4. c4 {[%clk 0:03:00]}  Nb6 {[%clk 0:02:58]} 5. f4 {[%clk 0:03:00]}  Bf5 {[%clk 0:02:53]} 6. Nc3 {[%clk 0:02:55]}  e6 {[%clk 0:02:52]} 7. Nf3 {[%clk 0:02:51]}  dxe5 {[%clk 0:02:49]} 8. fxe5 {[%clk 0:02:50]}  Be7 {[%clk 0:02:42]} 9. Be3 {[%clk 0:02:49]}  O-O {[%clk 0:02:42]} 10. Bd3 {[%clk 0:02:46]}  Bxd3 {[%clk 0:02:40]} 11. Qxd3 {[%clk 0:02:46]}  Nc6 {[%clk 0:02:32]} 12. O-O-O {[%clk 0:02:44]}  Na5 {[%clk 0:02:23]} 13. b3 {[%clk 0:02:38]}  Nc6 {[%clk 0:02:22]} 14. h4 {[%clk 0:02:35]}  a5 {[%clk 0:02:20]} 15. Ng5 {[%clk 0:02:29]}  g6 {[%clk 0:02:20]} 16. Nxh7 {[%clk 0:02:24]}  Nb4 {[%clk 0:02:03]} 17. Qe4 {[%clk 0:02:15]}  a4 {[%clk 0:02:00]} 18. Nxf8 {[%clk 0:02:07]}  Qxf8 {[%clk 0:02:00]} 19. h5 {[%clk 0:01:58]}  axb3 {[%clk 0:01:56]} 20. axb3 {[%clk 0:01:51]}  Na2+ {[%clk 0:01:54]} 21. Kc2 {[%clk 0:01:37]}  Nxc3 {[%clk 0:01:50]} 22. Kxc3 {[%clk 0:01:37]}  g5 {[%clk 0:01:26]} 23. h6 {[%clk 0:01:33]}  Ra2 {[%clk 0:01:19]} 24. h7+ {[%clk 0:01:32]}  Kh8 {[%clk 0:01:19]} 25. Ra1 {[%clk 0:01:21]}  Qa8 {[%clk 0:01:16]} 26. Rxa2 {[%clk 0:01:09]}  Qxa2 {[%clk 0:01:15]} 27. Qc2 {[%clk 0:01:07]}  Qa3 {[%clk 0:01:09]} 28. Kd3 {[%clk 0:01:02]}  c5 {[%clk 0:01:03]} 29. Bc1 {[%clk 0:00:50]}  Qa1 {[%clk 0:00:56]} 30. Qb2 {[%clk 0:00:49]}  Qa8 {[%clk 0:00:52]} 31. Qf2 {[%clk 0:00:42]}  Qd8 {[%clk 0:00:36]} 32. Bb2 {[%clk 0:00:36]}  Nd7 {[%clk 0:00:35]} 33. Ke2 {[%clk 0:00:35]}  f5 {[%clk 0:00:20]} 34. d5 {[%clk 0:00:33]}  Nf8 {[%clk 0:00:12]} 35. d6 {[%clk 0:00:31]}  Ng6 {[%clk 0:00:07]} 36. dxe7 {[%clk 0:00:29]}  Qxe7 {[%clk 0:00:07]} 37. g3 {[%clk 0:00:25]}  b5 {[%clk 0:00:05]} 38. Qe3 {[%clk 0:00:24]}  Qb7 {[%clk 0:00:04]} 39. Qf3 {[%clk 0:00:23]}  Qb8 {[%clk 0:00:02]} 40. Qc6 {[%clk 0:00:20]}  bxc4 {[%clk 0:00:02]} 41. Qxe6 {[%clk 0:00:20]}  c3 {[%clk 0:00:01]} 42. Qf6# {[%clk 0:00:19]} 1-0


[Site "https://www.chess.com"]

[Event "Titled Tuesday Blitz August 23 Late 2022"]
[White "Ladopoulos, Dimitrios"]
[Black "Ibrahimli, Murad"]
[WhiteFideId "4239580"]
[BlackFideId "13410229"]
[WhiteElo "2195"]
[BlackElo "2109"]
[Result "1-0"]
[Round "08"]
[TimeControl "180+1"]
[Date "2022.08.23"]
[WhiteClock "0:00:06"]
[BlackClock "0:00:09"]

1. d4 {[%clk 0:03:00]}  Nf6 {[%clk 0:02:57]} 2. Nf3 {[%clk 0:02:59]}  c5 {[%clk 0:02:58]} 3. d5 {[%clk 0:02:57]}  b5 {[%clk 0:02:58]} 4. a4 {[%clk 0:02:47]}  b4 {[%clk 0:02:58]} 5. e3 {[%clk 0:02:29]}  d6 {[%clk 0:02:57]} 6. Bc4 {[%clk 0:02:29]}  Nbd7 {[%clk 0:02:56]} 7. a5 {[%clk 0:02:30]}  g6 {[%clk 0:02:55]} 8. b3 {[%clk 0:02:30]}  Bg7 {[%clk 0:02:55]} 9. Bb2 {[%clk 0:02:30]}  O-O {[%clk 0:02:56]} 10. O-O {[%clk 0:02:30]}  Ng4 {[%clk 0:02:51]} 11. Bxg7 {[%clk 0:02:29]}  Kxg7 {[%clk 0:02:52]} 12. Nbd2 {[%clk 0:02:27]}  Nde5 {[%clk 0:02:44]} 13. Nxe5 {[%clk 0:02:24]}  Nxe5 {[%clk 0:02:45]} 14. Be2 {[%clk 0:02:14]}  Nd7 {[%clk 0:02:45]} 15. e4 {[%clk 0:02:07]}  f5 {[%clk 0:02:43]} 16. exf5 {[%clk 0:02:05]}  Rxf5 {[%clk 0:02:44]} 17. Nc4 {[%clk 0:02:03]}  Nf6 {[%clk 0:02:41]} 18. Ne3 {[%clk 0:02:03]}  Re5 {[%clk 0:02:41]} 19. Bf3 {[%clk 0:01:57]}  Ba6 {[%clk 0:02:40]} 20. Re1 {[%clk 0:01:56]}  Qd7 {[%clk 0:02:40]} 21. Qd2 {[%clk 0:01:55]}  Rf8 {[%clk 0:02:38]} 22. c3 {[%clk 0:01:47]}  Rb8 {[%clk 0:02:34]} 23. c4 {[%clk 0:01:44]}  Rf8 {[%clk 0:02:33]} 24. h3 {[%clk 0:01:40]}  h5 {[%clk 0:02:32]} 25. Nf1 {[%clk 0:01:25]}  Rxe1 {[%clk 0:02:31]} 26. Rxe1 {[%clk 0:01:24]}  Bc8 {[%clk 0:02:31]} 27. Ng3 {[%clk 0:01:23]}  Rf7 {[%clk 0:02:26]} 28. Qg5 {[%clk 0:01:16]}  Kh7 {[%clk 0:02:17]} 29. Ne4 {[%clk 0:01:02]}  Kg7 {[%clk 0:02:01]} 30. Ng3 {[%clk 0:00:55]}  Kh7 {[%clk 0:01:54]} 31. Bd1 {[%clk 0:00:53]}  Rg7 {[%clk 0:00:48]} 32. Bc2 {[%clk 0:00:46]}  Kg8 {[%clk 0:00:47]} 33. Bxg6 {[%clk 0:00:41]}  h4 {[%clk 0:00:47]} 34. Ne4 {[%clk 0:00:19]}  Nxe4 {[%clk 0:00:27]} 35. Rxe4 {[%clk 0:00:20]}  Qe8 {[%clk 0:00:27]} 36. Bxe8 {[%clk 0:00:15]}  Rxg5 {[%clk 0:00:28]} 37. Rxe7 {[%clk 0:00:16]}  Kf8 {[%clk 0:00:28]} 38. Re3 {[%clk 0:00:12]}  Bf5 {[%clk 0:00:25]} 39. Bc6 {[%clk 0:00:10]}  Bc2 {[%clk 0:00:25]} 40. Ba4 {[%clk 0:00:06]}  Rf5 {[%clk 0:00:16]} 41. g4 {[%clk 0:00:06]}  Rf4 {[%clk 0:00:15]} 42. f3 {[%clk 0:00:05]}  Rxc4 {[%clk 0:00:14]} 43. bxc4 {[%clk 0:00:05]}  Bxa4 {[%clk 0:00:15]} 44. Kf2 {[%clk 0:00:04]}  b3 {[%clk 0:00:15]} 45. Re2 {[%clk 0:00:04]}  Be8 {[%clk 0:00:12]} 46. f4 {[%clk 0:00:03]}  a6 {[%clk 0:00:09]} 47. f5 {[%clk 0:00:03]}  Kf7 {[%clk 0:00:09]} 48. Ke3 {[%clk 0:00:03]}  Bd7 {[%clk 0:00:08]} 49. Kf4 {[%clk 0:00:03]}  Kf6 {[%clk 0:00:09]} 50. Rb2 {[%clk 0:00:03]}  Kf7 {[%clk 0:00:10]} 51. g5 {[%clk 0:00:04]}  Ba4 {[%clk 0:00:10]} 52. f6 {[%clk 0:00:04]}  Kg6 {[%clk 0:00:10]} 53. Re2 {[%clk 0:00:04]}  Bd7 {[%clk 0:00:09]} 54. Rd2 {[%clk 0:00:03]}  Bxh3 {[%clk 0:00:07]} 55. Rb2 {[%clk 0:00:03]}  Bf1 {[%clk 0:00:07]} 56. Rxb3 {[%clk 0:00:03]}  Bxc4 {[%clk 0:00:08]} 57. Rb7 {[%clk 0:00:03]}  h3 {[%clk 0:00:08]} 58. Rg7+ {[%clk 0:00:04]}  Kh5 {[%clk 0:00:08]} 59. Rh7+ {[%clk 0:00:04]}  Kg6 {[%clk 0:00:09]} 60. Rh6+ {[%clk 0:00:05]}  Kf7 {[%clk 0:00:09]} 61. Rxh3 {[%clk 0:00:05]}  Bxd5 {[%clk 0:00:09]} 62. Rh7+ {[%clk 0:00:06]}  Ke6 {[%clk 0:00:09]} 63. Re7# {[%clk 0:00:06]} 1-0


[Site "https://www.chess.com"]

[Event "Titled Tuesday Blitz August 23 Late 2022"]
[White "Lenderman, Aleksandr"]
[Black "Andreikin, Dmitry"]
[WhiteFideId "2021285"]
[BlackFideId "4158814"]
[WhiteElo "2607"]
[BlackElo "2736"]
[Result "1/2-1/2"]
[Round "08"]
[TimeControl "180+1"]
[Date "2022.08.23"]
[WhiteClock "0:00:04"]
[BlackClock "0:00:04"]

1. Nf3 {[%clk 0:03:00]}  Nf6 {[%clk 0:02:59]} 2. c4 {[%clk 0:02:59]}  e6 {[%clk 0:02:58]} 3. Nc3 {[%clk 0:02:59]}  d5 {[%clk 0:02:59]} 4. e3 {[%clk 0:02:59]}  a6 {[%clk 0:02:57]} 5. b3 {[%clk 0:02:59]}  c5 {[%clk 0:02:57]} 6. Bb2 {[%clk 0:02:56]}  d4 {[%clk 0:02:49]} 7. exd4 {[%clk 0:02:56]}  cxd4 {[%clk 0:02:50]} 8. Ne2 {[%clk 0:02:56]}  e5 {[%clk 0:02:51]} 9. Nxe5 {[%clk 0:02:54]}  Bc5 {[%clk 0:02:50]} 10. Nd3 {[%clk 0:02:50]}  Ba7 {[%clk 0:02:48]} 11. Nef4 {[%clk 0:02:45]}  O-O {[%clk 0:02:47]} 12. Be2 {[%clk 0:02:45]}  Nc6 {[%clk 0:02:47]} 13. O-O {[%clk 0:02:45]}  Bf5 {[%clk 0:02:46]} 14. g4 {[%clk 0:02:19]}  Nxg4 {[%clk 0:02:28]} 15. Bxg4 {[%clk 0:02:18]}  Qg5 {[%clk 0:02:28]} 16. f3 {[%clk 0:02:07]}  Bxd3 {[%clk 0:02:16]} 17. Nxd3 {[%clk 0:02:08]}  f5 {[%clk 0:02:16]} 18. f4 {[%clk 0:02:03]}  Qg6 {[%clk 0:02:16]} 19. Qf3 {[%clk 0:01:48]}  fxg4 {[%clk 0:02:04]} 20. Qd5+ {[%clk 0:01:48]}  Kh8 {[%clk 0:02:04]} 21. f5 {[%clk 0:01:48]}  Qh6 {[%clk 0:02:00]} 22. Qg2 {[%clk 0:01:44]}  Rae8 {[%clk 0:01:48]} 23. Rae1 {[%clk 0:01:41]}  Rxe1 {[%clk 0:01:46]} 24. Rxe1 {[%clk 0:01:40]}  Qh5 {[%clk 0:01:45]} 25. Ba3 {[%clk 0:01:10]}  Rxf5 {[%clk 0:01:34]} 26. Bd6 {[%clk 0:00:55]}  h6 {[%clk 0:01:15]} 27. c5 {[%clk 0:00:54]}  Rf3 {[%clk 0:01:13]} 28. Nf2 {[%clk 0:00:41]}  Bxc5 {[%clk 0:00:57]} 29. Bxc5 {[%clk 0:00:41]}  Qxc5 {[%clk 0:00:54]} 30. Qxg4 {[%clk 0:00:41]}  Rf8 {[%clk 0:00:49]} 31. Ne4 {[%clk 0:00:41]}  Qc2 {[%clk 0:00:44]} 32. Rf1 {[%clk 0:00:39]}  Rxf1+ {[%clk 0:00:35]} 33. Kxf1 {[%clk 0:00:40]}  Ne5 {[%clk 0:00:35]} 34. Qf5 {[%clk 0:00:36]}  Qd3+ {[%clk 0:00:30]} 35. Kg2 {[%clk 0:00:35]}  Qe2+ {[%clk 0:00:30]} 36. Nf2 {[%clk 0:00:30]}  d3 {[%clk 0:00:22]} 37. Qf8+ {[%clk 0:00:27]}  Kh7 {[%clk 0:00:22]} 38. Qf5+ {[%clk 0:00:28]}  g6 {[%clk 0:00:23]} 39. Qf6 {[%clk 0:00:24]}  h5 {[%clk 0:00:15]} 40. h4 {[%clk 0:00:20]}  b5 {[%clk 0:00:09]} 41. Qe7+ {[%clk 0:00:19]}  Kg8 {[%clk 0:00:10]} 42. Qe6+ {[%clk 0:00:15]}  Kg7 {[%clk 0:00:10]} 43. Qe7+ {[%clk 0:00:14]}  Nf7 {[%clk 0:00:10]} 44. Qc5 {[%clk 0:00:08]}  Qxd2 {[%clk 0:00:06]} 45. Qd4+ {[%clk 0:00:08]}  Kg8 {[%clk 0:00:06]} 46. Qf6 {[%clk 0:00:05]}  Nh8 {[%clk 0:00:03]} 47. Qd8+ {[%clk 0:00:05]}  Kh7 {[%clk 0:00:03]} 48. Qe7+ {[%clk 0:00:05]}  Kg8 {[%clk 0:00:04]} 49. Qd8+ {[%clk 0:00:05]}  Kg7 {[%clk 0:00:04]} 50. Qd4+ {[%clk 0:00:05]}  Kh7 {[%clk 0:00:03]} 51. Qd7+ {[%clk 0:00:02]}  Kh6 {[%clk 0:00:04]} 52. Qd4 {[%clk 0:00:01]}  Nf7 {[%clk 0:00:03]} 53. Qf6 {[%clk 0:00:01]}  Qe2 {[%clk 0:00:02]} 54. Qxf7 {[%clk 0:00:02]}  d2 {[%clk 0:00:03]} 55. Qf8+ {[%clk 0:00:02]}  Kh7 {[%clk 0:00:03]} 56. Qf7+ {[%clk 0:00:03]}  Kh6 {[%clk 0:00:03]} 57. Qf6 {[%clk 0:00:03]}  Kh7 {[%clk 0:00:03]} 58. Qf7+ {[%clk 0:00:04]}  Kh8 {[%clk 0:00:04]} 59. Qf8+ {[%clk 0:00:04]}  Kh7 {[%clk 0:00:04]} 60. Qf7+ {[%clk 0:00:04]} 1/2-1/2


[Site "https://www.chess.com"]